bitfinex-derivatives/quotes_SOLF0:USTF0_20250507
["timestamp","ask_amount","ask_price","bid_price","bid_amount"]
[1746603680030,9.05490437,146.66,146.65,39.98618756]
[1746603681731,9.05514178,146.66,146.65,39.98618756]
[1746603687235,4.61691586,146.66,146.65,39.98618756]
[1746603687433,9.04647888,146.66,146.65,39.98618756]
[1746603692939,9.04432765,146.66,146.65,39.98618756]
[1746603694541,4.61691586,146.66,146.65,39.98618756]
[1746603697442,6.8165,146.71,146.65,33.16698756]
[1746603697744,4.42456292,146.7,146.69,6.8174]
[1746603697943,4.42449335,146.7,146.69,35.2774]
[1746603698145,4.42449335,146.7,146.69,28.46]
[1746603700444,4.42335078,146.7,146.69,28.46]
[1746603701745,11.24025078,146.7,146.69,28.46]
[1746603705146,6.8169,146.7,146.69,28.46]
[1746603706547,11.23931962,146.7,146.69,28.46]
[1746603710048,15.78987748,146.7,146.69,28.46]
[1746603710950,15.79041867,146.7,146.69,28.46]
[1746603711350,8.97351867,146.7,146.69,28.46]
[1746603712852,8.97369821,146.7,146.69,35.2774]
[1746603716554,8.97146471,146.7,146.69,35.2774]
[1746603720252,8.97113163,146.7,146.69,35.2774]
[1746603721456,2.0828,146.75,146.69,28.46]
[1746603721653,8.8976,146.75,146.72,4.68698756]
[1746603721853,8.8976,146.75,146.73,28.44]
[1746603723056,6.8151,146.74,146.73,28.44]
[1746603723256,2.0828,146.75,146.73,28.44]
[1746603723457,2.1318,146.77,146.73,28.44]
[1746603723659,6.8149,146.75,146.73,28.44]
[1746603728657,6.8151,146.74,146.73,28.44]
[1746603733362,11.12601555,146.74,146.73,28.44]
[1746603733763,15.59441664,146.74,146.73,28.44]
[1746603736162,15.59360118,146.74,146.73,28.44]
[1746603739666,15.59314353,146.74,146.73,33.12698756]
[1746603739867,8.77805246,146.74,146.73,33.12698756]
[1746603740862,8.77805246,146.74,146.73,39.94248756]
[1746603743567,8.77202957,146.74,146.73,39.94248756]
[1746603745468,8.77385706,146.74,146.73,39.94248756]
[1746603746167,4.46840109,146.74,146.73,39.94248756]
[1746603748571,4.46840109,146.74,146.73,33.12698756]
[1746603748765,4.46840109,146.74,146.73,28.44]
[1746603749061,4.46840109,146.74,146.73,33.12698756]
[1746603750179,4.46840109,146.74,146.73,28.44]
[1746603750373,8.78330481,146.74,146.73,33.12698756]
[1746603750567,4.46840109,146.74,146.73,39.94248756]
[1746603750768,4.46840109,146.74,146.73,33.12698756]
[1746603752483,11.28350109,146.74,146.73,33.12698756]
[1746603752777,15.60244452,146.74,146.73,33.12698756]
[1746603753074,8.78734452,146.74,146.73,33.12698756]
[1746603756782,8.78937083,146.74,146.73,33.12698756]
[1746603756973,8.78937883,146.74,146.73,33.12698756]
[1746603761183,8.78937883,146.74,146.73,39.94248756]
[1746603761681,4.146,146.81,146.75,6.8145]
[1746603761884,6.8135,146.78,146.75,11.50148756]
[1746603764587,4.146,146.81,146.75,4.68698756]
[1746603764783,6.8129,146.79,146.77,4.68698756]
[1746603764980,6.8129,146.79,146.78,28.42]
[1746603765585,6.8125,146.8,146.78,28.42]
[1746603766488,6.812,146.81,146.78,35.2332]
[1746603767087,5.2761,146.82,146.78,35.2332]
[1746603767282,5.2761,146.82,146.79,4.68698756]
[1746603767687,5.2761,146.82,146.8,6.8122]
[1746603767888,5.2761,146.82,146.81,4.68698756]
[1746603768290,5.2761,146.82,146.81,11.49878756]
[1746603768589,5.2761,146.82,146.81,4.68698756]
[1746603769492,12.0875,146.82,146.81,4.68698756]
[1746603770287,5.2761,146.82,146.78,6.8132]
[1746603770488,5.2761,146.82,146.79,28.42]
[1746603771194,6.8123,146.8,146.79,28.42]
[1746603771387,9.96308756,146.82,146.79,28.42]
[1746603771893,6.8123,146.8,146.79,28.42]
[1746603773790,11.0303329,146.8,146.79,28.42]
[1746603774692,6.8123,146.8,146.79,28.42]
[1746603774894,11.03046799,146.8,146.79,28.42]
[1746603776596,11.03085213,146.8,146.79,28.42]
[1746603782397,11.03085213,146.8,146.79,17.7119]
[1746603782599,6.8146,146.75,146.74,7.31142438]
[1746603782898,6.8146,146.75,146.74,35.73142438]
[1746603783996,6.8143,146.76,146.74,35.73142438]
[1746603784800,6.8146,146.75,146.74,35.73142438]
[1746603785004,6.8146,146.75,146.74,28.42]
[1746603785401,6.8146,146.75,146.72,595.5958]
[1746603785601,6.8146,146.75,146.73,28.42]
[1746603786004,6.8151,146.74,146.72,588.78]
[1746603786504,6.8151,146.74,146.73,28.42]
[1746603786704,6.8147,146.75,146.73,28.42]
[1746603788000,6.8147,146.75,146.73,35.2355]
[1746603788199,6.8147,146.75,146.73,6.8155]
[1746603788399,6.8147,146.75,146.74,28.42]
[1746603788705,11.04805406,146.75,146.74,28.42]
[1746603789104,11.04805406,146.75,146.73,6.8155]
[1746603789304,6.8147,146.75,146.74,28.42]
[1746603789501,4.23329104,146.75,146.74,35.2351]
[1746603789903,4.23329104,146.75,146.74,28.42]
[1746603790305,2.0041,146.81,146.72,588.78]
[1746603790605,6.8129,146.79,146.77,6.8135]
[1746603790806,6.8129,146.79,146.78,28.42]
[1746603791010,11.04473152,146.79,146.78,28.42]
[1746603792909,4.23183152,146.79,146.78,28.42]
[1746603793608,4.23183152,146.79,146.78,35.2332]
[1746603793910,4.23117728,146.79,146.78,35.2332]
[1746603795207,4.23117728,146.79,146.78,28.42]
[1746603795612,11.04387728,146.79,146.78,28.42]
[1746603796009,11.04338111,146.79,146.78,28.42]
[1746603798019,6.8137,146.77,146.74,11.51692438]
[1746603798217,6.8137,146.77,146.75,28.42]
[1746603799015,6.8137,146.77,146.75,35.2346]
[1746603800113,6.8141,146.76,146.75,28.42]
[1746603800505,5.2761,146.82,146.75,35.2345]
[1746603800704,6.8136,146.78,146.75,35.2345]
[1746603800916,4.23700472,146.77,146.75,35.2345]
[1746603801112,6.8136,146.78,146.75,35.2345]
[1746603801313,4.23717151,146.77,146.75,35.2345]
[1746603801513,6.8136,146.78,146.75,35.2345]
[1746603801714,4.23871472,146.77,146.76,6.8141]
[1746603803116,4.23487466,146.77,146.76,6.8141]
[1746603805119,6.8125,146.8,146.77,6.8135]
[1746603805313,4.23727345,146.79,146.77,6.8135]
[1746603805517,4.23727345,146.78,146.77,6.8135]
[1746603806719,4.23568542,146.78,146.77,6.8135]
[1746603809519,4.23568542,146.78,146.77,6.8137]
[1746603809520,4.23552809,146.78,146.77,6.8137]
[1746603811921,4.22699817,146.78,146.77,6.8137]
[1746603813321,5.2761,146.82,146.77,6.8137]
[1746603813522,4.22540435,146.81,146.77,6.8137]
[1746603813722,11.03800435,146.8,146.77,6.8137]
[1746603813922,4.22540435,146.79,146.77,6.8137]
[1746603814123,4.22531116,146.78,146.77,6.8137]
[1746603816028,4.22531116,146.78,146.76,6.8139]
[1746603816226,4.22531116,146.77,146.76,6.8139]
[1746603816722,4.22531116,146.77,146.76,35.2139]
[1746603817931,4.22531116,146.77,146.76,28.4]
[1746603819230,4.2297757,146.77,146.76,28.4]
[1746603819529,4.22991162,146.77,146.76,28.4]
[1746603820327,4.22991162,146.77,146.76,35.2141]
[1746603820823,6.8128,146.79,146.76,28.4]
[1746603821025,4.22989555,146.78,146.76,28.4]
[1746603821220,6.8128,146.79,146.76,28.4]
[1746603821426,4.22982768,146.78,146.76,28.4]
[1746603821727,6.8128,146.79,146.76,28.4]
[1746603821926,4.22984776,146.78,146.76,28.4]
[1746603822128,6.8128,146.79,146.77,6.8135]
[1746603822427,4.22972399,146.78,146.77,6.8135]
[1746603822633,4.22974965,146.78,146.77,6.8135]
[1746603825033,4.22958493,146.78,146.77,6.8135]
[1746603826038,6.812,146.81,146.79,6.8126]
[1746603826235,6.812,146.81,146.8,28.4]
[1746603828637,12.0878,146.82,146.8,28.4]
[1746603828941,5.2761,146.82,146.8,28.4]
[1746603830138,6.8118,146.81,146.8,28.4]
[1746603837341,12.0877,146.82,146.8,28.4]
[1746603838044,5.2761,146.82,146.8,33.07855477]
[1746603838744,2.0703,146.89,146.8,33.07855477]
[1746603838946,2.0703,146.89,146.84,4.67855477]
[1746603839245,6.8097,146.86,146.85,28.4]
[1746603839439,6.74885477,146.89,146.75,602.2492]
[1746603839739,4.67855477,146.87,146.75,588.62]
[1746603839939,4.67855477,146.87,146.81,4.67855477]
[1746603840140,4.67855477,146.87,146.82,28.4]
[1746603840344,4.67855477,146.87,146.83,28.4]
[1746603840846,4.67855477,146.85,146.79,4.67855477]
[1746603841144,4.67855477,146.85,146.8,28.4]
[1746603841345,6.8118,146.81,146.8,28.4]
[1746603861665,11.45422253,146.81,146.8,28.4]
[1746603861866,15.59643412,146.81,146.8,28.4]
[1746603864468,15.60438885,146.81,146.8,28.4]
[1746603864965,15.60438885,146.81,146.8,35.2123]
[1746603864966,8.79258885,146.81,146.8,35.2123]
[1746603865767,8.79301603,146.81,146.8,35.2123]
[1746603867570,8.79719331,146.81,146.8,35.2123]
[1746603869467,8.79719331,146.81,146.8,28.4]
[1746603871269,15.60899331,146.81,146.8,28.4]
[1746603871973,8.79719331,146.81,146.8,28.4]
[1746603872970,8.79775754,146.81,146.8,28.4]
[1746603874371,8.79775754,146.81,146.8,35.2123]
[1746603875166,8.79775754,146.81,146.8,28.4]
[1746603875371,15.60955754,146.81,146.8,28.4]
[1746603875674,8.79775754,146.81,146.8,28.4]
[1746603876572,8.78585383,146.81,146.8,28.4]
[1746603876975,8.78585383,146.81,146.8,33.07855477]
[1746603878074,15.59765383,146.81,146.8,33.07855477]
[1746603878477,15.59765383,146.81,146.8,28.4]
[1746603878676,15.59765383,146.81,146.8,33.07855477]
[1746603879175,8.78585383,146.81,146.8,33.07855477]
[1746603880270,8.79094947,146.81,146.8,33.07855477]
[1746603881178,15.60274947,146.81,146.8,33.07855477]
[1746603881571,8.79094947,146.81,146.8,33.07855477]
[1746603882476,8.79094947,146.81,146.8,39.89085477]
[1746603882677,8.79094947,146.81,146.8,33.07855477]
[1746603883074,2.0275,146.88,146.8,33.07855477]
[1746603883278,4.1456798,146.87,146.82,4.67855477]
[1746603883480,4.1456798,146.86,146.82,4.67855477]
[1746603883776,6.8107,146.84,146.81,6.8116]
[1746603883977,4.1456798,146.83,146.82,4.67855477]
[1746603884479,4.1456798,146.83,146.82,11.48995477]
[1746603885681,6.8102,146.85,146.82,11.48995477]
[1746603885878,4.14389974,146.84,146.82,11.48995477]
[1746603886080,4.14389974,146.83,146.82,11.48995477]
[1746603886279,2.0275,146.88,146.82,11.48995477]
[1746603886482,4.14230219,146.87,146.82,11.48995477]
[1746603886671,4.14230219,146.86,146.82,11.48995477]
[1746603886979,4.14230219,146.85,146.82,11.48995477]
[1746603887278,4.14230219,146.84,146.81,6.8115]
[1746603887480,4.14288933,146.83,146.81,4.67855477]
[1746603887677,4.14288933,146.82,146.8,4.67855477]
[1746603887982,4.67855477,146.87,146.81,28.4]
[1746603888180,4.14464458,146.86,146.81,28.4]
[1746603888379,4.14464458,146.85,146.81,28.4]
[1746603888575,4.14464458,146.84,146.81,28.4]
[1746603888776,4.14464458,146.83,146.81,28.4]
[1746603888976,10.95634458,146.82,146.81,28.4]
[1746603889178,10.95605418,146.82,146.81,28.4]
[1746603890573,6.8109,146.84,146.81,28.4]
[1746603890883,4.14312814,146.83,146.81,28.4]
[1746603891087,4.14312814,146.82,146.81,33.07855477]
[1746603891577,4.67855477,146.87,146.81,33.07855477]
[1746603891877,6.8113,146.83,146.81,33.07855477]
[1746603892281,4.14321817,146.82,146.81,39.89035477]
[1746603892684,4.14299828,146.82,146.81,39.89035477]
[1746603892887,4.14299828,146.82,146.81,33.07855477]
[1746603893987,4.14299828,146.82,146.81,39.89035477]
[1746603895387,4.1908,146.88,146.82,6.8112]
[1746603895584,8.71345287,146.87,146.83,4.67855477]
[1746603895786,4.14723106,146.86,146.83,4.67855477]
[1746603895987,4.56622181,146.87,146.83,4.67855477]
[1746603896291,6.8104,146.84,146.83,4.67855477]
[1746603897892,6.8101,146.85,146.83,4.67855477]
[1746603898687,4.56607208,146.84,146.83,4.67855477]
[1746603899090,4.56607208,146.84,146.83,11.48945477]
[1746603902092,4.56607208,146.84,146.83,4.67855477]
[1746603902291,4.56607208,146.84,146.82,6.8111]
[1746603902585,4.56607208,146.84,146.82,11.48965477]
[1746603902789,4.56607208,146.84,146.82,4.67855477]
[1746603902992,4.56607208,146.83,146.82,4.67855477]
[1746603903791,4.56607208,146.83,146.82,11.48995477]
[1746603903990,4.56607208,146.83,146.82,6.8114]
[1746603904396,4.56607208,146.83,146.82,11.48995477]
[1746603906194,4.56607208,146.83,146.82,6.8114]
[1746603906493,4.56607208,146.83,146.82,11.48995477]
[1746603916201,4.56607208,146.83,146.82,6.8114]
[1746603916401,4.56607208,146.83,146.82,11.48995477]
[1746603918603,6.8091,146.87,146.84,6.81]
[1746603918799,4.14733299,146.86,146.85,33.05855477]
[1746603922098,4.67855477,146.93,146.85,33.05855477]
[1746603922303,4.67855477,146.93,146.88,4.67855477]
[1746603922499,4.67855477,146.93,146.89,28.38]
[1746603922701,6.8079,146.9,146.89,28.38]
[1746603922908,4.1401,146.94,146.89,28.38]
[1746603923300,4.67855477,146.99,146.92,4.67855477]
[1746603923501,4.67855477,146.99,146.93,28.38]
[1746603923707,6.8055,146.95,146.93,28.38]
[1746603923908,4.67855477,147.01,146.94,4.67855477]
[1746603924297,6.8043,146.98,146.94,11.48405477]
[1746603924506,4.67855477,147.01,146.94,4.67855477]
[1746603925008,6.8044,146.98,146.96,4.67855477]
[1746603925199,6.8044,146.98,146.97,28.38]
[1746603936012,6.8036,146.99,146.97,28.38]
[1746603936216,4.2999,147.02,146.97,28.38]
[1746603936417,4.24387174,147.01,146.97,28.38]
[1746603936710,6.8038,146.99,146.97,28.38]
[1746603937212,6.8034,147.0,146.97,35.1841]
[1746603938014,6.8035,146.99,146.97,35.1841]
[1746603938215,13.6017,147.05,146.92,2.0209]
[1746603938410,4.24201867,147.04,146.93,28.36]
[1746603938714,6.8049,146.96,146.93,28.36]
[1746603939316,6.8049,146.96,146.93,35.166]
[1746603939614,6.8054,146.95,146.93,28.36]
[1746603942521,6.8058,146.94,146.93,28.36]
[1746603942923,7.29177384,147.03,146.93,28.36]
[1746603943117,6.8056,146.95,146.93,28.36]
[1746603944323,6.8051,146.96,146.93,35.166]
[1746603944823,7.29177384,147.03,146.93,28.36]
[1746603945023,4.24292651,147.02,146.93,28.36]
[1746603945225,4.24292651,147.01,146.93,28.36]
[1746603945423,4.24292651,147.0,146.93,28.36]
[1746603945624,7.29177384,147.03,146.93,28.36]
[1746603946024,6.8049,146.96,146.94,6.8057]
[1746603947424,6.8049,146.96,146.93,35.166]
[1746603948521,6.8049,146.96,146.94,6.8058]
[1746603949324,6.8049,146.96,146.93,35.166]
[1746603951332,6.8058,146.94,146.91,8.8567]
[1746603951521,6.8058,146.94,146.92,28.36]
[1746603951722,7.29177384,147.0,146.92,28.36]
[1746603951922,6.8063,146.93,146.9,595.1872]
[1746603952426,6.8063,146.93,146.91,28.36]
[1746603952728,6.8063,146.93,146.92,28.36]
[1746603954130,6.8063,146.93,146.91,6.8071]
[1746603954430,6.8063,146.93,146.92,28.36]
[1746603955128,6.806,146.94,146.92,28.36]
[1746603955326,2.1441,146.99,146.92,35.1667]
[1746603955630,6.8055,146.95,146.92,35.1667]
[1746603956330,6.8055,146.95,146.93,6.8062]
[1746603956532,6.805,146.96,146.93,6.8062]
[1746603956833,6.805,146.96,146.92,28.36]
[1746603957028,6.8045,146.97,146.92,28.36]
[1746603957426,6.8045,146.97,146.94,6.8056]
[1746603957736,6.8049,146.96,146.94,6.8056]
[1746603958731,6.8049,146.96,146.93,6.8061]
[1746603958928,6.8054,146.95,146.92,28.36]
[1746603959224,6.8054,146.95,146.92,35.1665]
[1746603959728,6.8058,146.94,146.92,28.36]
[1746603959935,2.1441,146.99,146.92,28.36]
[1746603960236,4.25885634,146.98,146.92,28.36]
[1746603960534,4.25885634,146.97,146.92,28.36]
[1746603960735,4.25885634,146.96,146.92,28.36]
[1746603960925,2.1441,146.99,146.92,28.36]
[1746603961229,6.8063,146.93,146.92,28.36]
[1746603961429,4.26406752,146.93,146.92,28.48]
[1746603961733,7.29177384,146.97,146.92,28.48]
[1746603961934,4.26425042,146.96,146.92,28.48]
[1746603962134,4.26425042,146.95,146.92,28.48]
[1746603962337,13.52027384,147.04,146.92,28.48]
[1746603962532,4.27138573,147.03,146.92,28.48]
[1746603962731,6.8037,146.99,146.92,35.77177384]
[1746603963026,4.27138687,146.98,146.92,35.77177384]
[1746603963232,6.8032,147.0,146.96,6.8048]
[1746603963432,4.27306977,146.99,146.97,28.48]
[1746603963632,4.27306977,146.98,146.97,28.48]
[1746603963933,4.27306977,146.98,146.97,35.2844]
[1746603964341,6.2285,147.04,146.99,6.8032]
[1746603964636,4.2724494,147.03,146.99,6.8032]
[1746603964829,11.0748494,147.02,146.99,6.8032]
[1746603965028,4.2724494,147.01,146.99,6.8032]
[1746603965234,4.2724494,147.0,146.99,6.8032]
[1746603965437,4.2724494,147.0,146.98,6.8037]
[1746603965637,4.2724494,146.99,146.98,6.8037]
[1746603968241,4.2724494,146.99,146.97,28.48]
[1746603968440,4.2724494,146.98,146.97,28.48]
[1746603968841,4.28616346,146.98,146.97,28.48]
[1746603969437,4.28616346,146.98,146.97,35.2844]
[1746603971753,4.28716756,146.98,146.97,35.2844]
[1746603980151,6.8023,147.02,146.97,35.2844]
[1746603980355,4.29109227,147.01,146.99,6.8033]
[1746603980557,4.29045022,147.0,146.97,28.48]
[1746603980755,4.29045022,146.99,146.98,6.8036]
[1746603981862,4.29045022,146.99,146.97,35.2841]
[1746603982054,4.29045022,146.98,146.97,35.2841]
[1746603982254,4.29651376,146.98,146.97,28.48]
[1746603983359,6.8032,147.0,146.98,6.8039]
[1746603983562,4.30085538,146.99,146.98,6.8039]
[1746603984160,4.30034865,146.99,146.97,35.2842]
[1746603984362,6.8032,147.0,146.97,28.48]
[1746603984560,4.30030395,146.99,146.97,28.48]
[1746603984859,4.30030395,146.98,146.97,35.2844]
[1746603985260,6.8032,147.0,146.97,35.2844]
[1746603985455,4.29582228,146.99,146.97,35.2844]
[1746603985656,6.8032,147.0,146.97,35.2844]
[1746603985863,4.2955513,146.99,146.98,6.8039]
[1746603986060,4.29551627,146.99,146.98,6.8039]
[1746603988263,6.8022,147.02,146.99,6.8031]
[1746603988464,4.29598947,147.01,146.97,90.48]
[1746603988763,4.29598947,147.0,146.97,90.48]
[1746603989063,6.8022,147.02,146.99,6.8031]
[1746603989262,4.29474388,147.01,146.99,6.8031]
[1746603989463,4.29474388,147.0,146.99,6.8031]
[1746603989865,4.2951886,147.0,146.99,6.8031]
[1746603993662,11.0982886,147.0,146.98,6.8037]
[1746603993866,2.1207,147.07,146.98,6.8037]
[1746603994054,4.28498665,147.06,146.98,6.8037]
[1746603994254,6.8028,147.01,146.98,6.8037]
[1746603994456,4.28498665,147.0,146.98,6.8037]
[1746603994762,6.8018,147.03,146.98,7.29048887]
[1746603994963,4.28480876,147.02,146.98,9.44898887]
[1746603995159,4.28480876,147.01,146.98,9.44898887]
[1746603995464,6.8015,147.04,146.98,9.44898887]
[1746603995664,4.2790288,147.03,146.98,9.44898887]
[1746603995864,2.1207,147.07,146.98,9.44898887]
[1746603995865,4.2790288,147.02,147.0,6.8026]
[1746603996164,2.1207,147.07,147.01,28.62]
[1746603996362,6.8019,147.03,147.01,28.62]
[1746603996561,4.27819101,147.02,147.01,28.62]
[1746603996866,4.27819101,147.02,147.01,35.4225]
[1746603997364,2.1207,147.07,147.01,35.4225]
[1746603997564,4.27922648,147.06,147.01,35.4225]
[1746603997766,4.27922648,147.05,147.01,35.4225]
[1746603997964,4.27922648,147.04,147.01,35.4225]
[1746603998166,4.27922648,147.03,147.01,35.4225]
[1746603998465,4.27922648,147.02,147.01,35.4225]
[1746603999470,6.8019,147.03,147.01,35.4225]
[1746604000166,4.26950249,147.02,147.01,28.62]
[1746604000371,6.8019,147.03,147.01,28.62]
[1746604000767,6.8019,147.03,147.01,35.4224]
[1746604000968,6.8014,147.04,147.01,28.62]
[1746604001169,4.26846877,147.03,147.01,28.62]
[1746604001370,4.26910207,147.02,147.01,35.4223]
[1746604002070,2.1207,147.07,147.02,6.802]
[1746604002372,4.26896317,147.06,147.01,28.62]
[1746604002669,11.07006317,147.05,147.01,28.62]
[1746604002869,4.26896317,147.04,147.02,6.8018]
[1746604003073,4.26896317,147.03,147.02,6.8018]
[1746604003667,4.26896317,147.03,147.01,35.91048887]
[1746604003862,6.8009,147.05,147.01,35.91048887]
[1746604004166,4.26717024,147.04,147.02,6.8021]
[1746604004366,4.26717024,147.03,147.02,6.8021]
[1746604005872,4.26455859,147.03,147.02,6.8021]
[1746604007168,28.62,147.19,147.01,35.91048887]
[1746604007372,4.2654,147.16,147.04,7.29048887]
[1746604007572,4.2654,147.16,147.05,28.62]
[1746604007773,6.7986,147.1,147.07,6.7997]
[1746604008178,4.2654,147.16,147.08,7.29048887]
[1746604008367,4.2654,147.16,147.09,28.62]
[1746604008870,6.7968,147.14,147.09,28.62]
[1746604009167,4.2654,147.16,147.11,7.29048887]
[1746604009372,2.0979,147.16,147.11,7.29048887]
[1746604009776,2.1507,147.21,147.11,7.29048887]
[1746604009978,2.1704,147.2,147.11,7.29048887]
[1746604011381,6.7965,147.15,147.11,7.29048887]
[1746604011581,2.1704,147.2,147.11,7.29048887]
[1746604011885,2.1704,147.2,147.1,62.0]
[1746604012179,13.5885,147.19,147.09,28.62]
[1746604012380,7.29048887,147.18,147.07,7.29048887]
[1746604012575,35.89048887,147.18,147.08,28.6]
[1746604012981,6.7988,147.09,147.08,28.6]
[1746604021083,6.7988,147.09,147.04,594.4809]
[1746604021288,4.2037,147.13,147.05,35.3407]
[1746604021485,4.14419816,147.12,147.05,35.3407]
[1746604021687,4.14419816,147.11,147.05,35.3407]
[1746604021878,6.7996,147.08,147.05,35.3407]
[1746604025089,6.7999,147.07,147.05,35.3407]
[1746604027593,6.7995,147.08,147.05,35.3407]
[1746604028595,6.7999,147.07,147.05,35.3407]
[1746604029098,4.2037,147.13,147.05,35.3407]
[1746604029294,6.7996,147.08,147.05,35.3407]
[1746604030500,6.7998,147.07,147.05,35.3407]
[1746604030798,4.2037,147.13,147.05,35.3407]
[1746604031003,4.13972037,147.12,147.06,6.8001]
[1746604031296,6.7992,147.09,147.06,6.8001]
[1746604031505,4.2037,147.13,147.05,35.3405]
[1746604031703,6.7996,147.08,147.05,35.3405]
[1746604033802,6.7996,147.08,147.06,6.8001]
[1746604034202,6.7996,147.08,147.05,28.54]
[1746604034808,6.7996,147.08,147.05,35.3404]
[1746604036112,6.7991,147.09,147.06,6.7999]
[1746604036301,2.0392,147.13,147.05,28.54]
[1746604036506,4.3036313,147.12,147.06,7.29048887]
[1746604036802,4.3036313,147.11,147.06,7.29048887]
[1746604036999,4.3036313,147.1,147.07,6.7995]
[1746604037312,6.7984,147.11,147.06,7.29048887]
[1746604037611,4.31223277,147.1,147.08,6.7992]
[1746604037811,6.7984,147.11,147.09,28.54]
[1746604038111,4.31229036,147.1,147.09,28.54]
[1746604039214,8.75473188,147.1,147.09,28.54]
[1746604040013,8.75681531,147.1,147.09,28.54]
[1746604040607,8.75681531,147.1,147.09,35.3388]
[1746604041015,4.1894,147.17,147.09,35.83048887]
[1746604041208,4.31443502,147.16,147.09,35.83048887]
[1746604041408,4.31443502,147.15,147.1,4.2625]
[1746604041607,4.31443502,147.14,147.1,4.2625]
[1746604041809,4.31443502,147.13,147.1,4.2625]
[1746604042008,6.7958,147.16,147.1,4.2625]
[1746604042204,6.7958,147.16,147.13,6.7968]
[1746604042205,4.31185515,147.15,147.13,6.7968]
[1746604042404,4.31185515,147.14,147.13,6.7968]
[1746604042603,4.31185515,147.14,147.13,35.3368]
[1746604042915,4.31185515,147.14,147.13,28.54]
[1746604043516,4.31185515,147.14,147.13,35.337]
[1746604043916,4.31159631,147.14,147.13,35.337]
[1746604044417,4.31159631,147.14,147.13,28.54]
[1746604045113,4.31159631,147.14,147.13,35.337]
[1746604045515,6.7961,147.15,147.13,35.337]
[1746604045721,4.31415393,147.14,147.13,35.337]
[1746604046717,4.31209865,147.14,147.13,35.337]
[1746604047413,4.31277455,147.14,147.13,35.337]
[1746604047917,4.31204844,147.14,147.13,35.337]
[1746604048318,4.31204844,147.14,147.13,28.54]
[1746604048919,4.31204844,147.14,147.13,35.337]
[1746604049216,4.31284362,147.14,147.13,35.337]
[1746604050413,6.7953,147.17,147.15,6.796]
[1746604050610,4.31284292,147.16,147.13,28.54]
[1746604050816,4.31284301,147.15,147.13,28.54]
[1746604051017,6.7953,147.17,147.14,6.7962]
[1746604051215,4.31516482,147.16,147.13,28.54]
[1746604051517,4.31516482,147.15,147.14,6.7965]
[1746604052620,6.7949,147.18,147.15,6.796]
[1746604052919,4.31260099,147.17,147.15,6.796]
[1746604053119,4.31260099,147.16,147.15,6.796]
[1746604053820,4.31451719,147.16,147.14,6.7963]
[1746604054022,6.7952,147.17,147.14,6.7963]
[1746604054224,4.31455155,147.16,147.13,28.54]
[1746604054414,6.7949,147.18,147.15,6.7958]
[1746604054618,4.31025528,147.17,147.13,28.54]
[1746604054817,34.8878,147.27,147.13,30.7125]
[1746604055014,4.30887162,147.26,147.17,6.7951]
[1746604055219,4.30887162,147.25,147.18,28.46]
[1746604055418,6.7941,147.2,147.18,28.46]
[1746604055622,4.30887162,147.19,147.18,28.46]
[1746604055822,34.8878,147.27,147.18,35.2547]
[1746604056024,4.3090732,147.26,147.18,28.46]
[1746604056317,4.3090732,147.25,147.18,35.2543]
[1746604056622,6.7934,147.21,147.18,28.46]
[1746604056823,4.3090732,147.2,147.18,35.2545]
[1746604057022,6.7934,147.21,147.18,35.2545]
[1746604057218,6.7934,147.21,147.18,28.46]
[1746604057523,6.7939,147.2,147.18,28.46]
[1746604057922,34.8878,147.27,147.18,28.46]
[1746604058122,7.29048887,147.25,147.18,28.46]
[1746604058325,6.7942,147.19,147.18,28.46]
[1746604058622,11.09487784,147.19,147.18,28.46]
[1746604059217,6.7942,147.19,147.18,28.46]
[1746604059423,11.09243845,147.19,147.18,28.46]
[1746604059623,11.09209172,147.19,147.18,28.46]
[1746604061025,11.09244229,147.19,147.18,28.46]